bitfinex/quotes_SOLUSD_20240623
["timestamp","ask_amount","ask_price","bid_price","bid_amount"]
[1719106235560,6.5,134.72,134.67,100.0]
[1719106235735,6.5,134.72,134.67,106.5]
[1719106235935,6.5,134.73,134.68,6.5]
[1719106238263,13.9223,134.73,134.68,6.5]
[1719106241946,13.9228,134.72,134.67,106.5]
[1719106242145,13.9228,134.72,134.67,6.5]
[1719106242362,13.9228,134.72,134.65,100.0]
[1719106242363,13.9243,134.7,134.65,100.0]
[1719106242666,6.5,134.69,134.64,6.5]
[1719106243864,6.5,134.69,134.63,100.0]
[1719106244067,6.5,134.68,134.63,106.5]
[1719106244436,6.5,134.68,134.62,22.2584]
[1719106244637,6.5,134.67,134.62,28.7584]
[1719106244937,6.5,134.67,134.61,100.0]
[1719106244938,6.5,134.66,134.61,100.0]
[1719106245156,13.9264,134.66,134.61,100.0]
[1719106245464,6.5,134.64,134.59,106.5]
[1719106246150,22.5383,134.66,134.59,106.5]
[1719106246342,6.5,134.64,134.59,106.5]
[1719106248867,6.5,134.65,134.61,100.0]
[1719106249352,21.6119,134.66,134.61,106.5]
[1719106250582,6.5,134.65,134.6,6.5]
[1719106251353,6.5,134.65,134.59,106.5]
[1719106252366,6.5,134.65,134.61,100.0]
[1719106254381,15.1119,134.66,134.61,100.0]
[1719106254382,15.1119,134.66,134.61,106.5]
[1719106254762,21.6119,134.66,134.61,106.5]
[1719106257396,15.1119,134.66,134.62,6.5]
[1719106257690,6.5,134.68,134.63,106.5]
[1719106257986,29.036,134.7,134.65,100.0]
[1719106258292,22.536,134.7,134.65,100.0]
[1719106258477,21.6119,134.7,134.65,106.5]
[1719106258994,15.1119,134.7,134.65,106.5]
[1719106259776,13.9234,134.71,134.66,6.5]
[1719106259965,20.0,134.7,134.66,6.5]
[1719106260566,27.424,134.7,134.66,6.5]
[1719106260772,27.424,134.7,134.65,106.5]
[1719106261023,27.424,134.7,134.65,100.0]
[1719106261167,27.424,134.7,134.65,106.5]
[1719106261567,15.1119,134.73,134.67,100.0]
[1719106261766,21.6119,134.73,134.69,100.0]
[1719106262001,7.4217,134.74,134.69,106.5]
[1719106262298,7.4217,134.74,134.7,6.5]
[1719106263077,7.4217,134.74,134.69,106.5]
[1719106263390,7.4223,134.73,134.69,100.0]
[1719106264374,13.9218,134.74,134.7,1.516772]
[1719106264590,7.4218,134.74,134.7,1.516772]
[1719106264769,13.9218,134.74,134.7,1.516772]
[1719106265373,7.4218,134.74,134.7,8.016772]
[1719106265585,7.4218,134.74,134.7,6.5]
[1719106265785,13.9218,134.74,134.69,106.5]
[1719106266420,7.4218,134.74,134.69,106.5]
[1719106266703,6.5,134.74,134.69,106.5]
[1719106266898,15.0384,134.76,134.71,100.0]
[1719106267088,6.5,134.76,134.71,106.5]
[1719106267273,13.9204,134.77,134.72,6.5]
[1719106269301,7.4196,134.78,134.73,100.0]
[1719106269602,7.4186,134.8,134.74,6.5]
[1719106269806,13.9186,134.8,134.75,6.5]
[1719106270304,7.4178,134.81,134.75,106.5]
[1719106270606,15.0384,134.82,134.76,6.5]
[1719106270805,6.5,134.81,134.76,6.5]
[1719106271007,6.5,134.81,134.77,0.89619837]
[1719106271508,6.5,134.81,134.76,6.5]
[1719106271878,13.9178,134.81,134.76,6.5]
[1719106272703,6.5,134.8,134.75,106.5]
[1719106272878,13.9178,134.81,134.75,106.5]
[1719106273296,7.4188,134.8,134.75,100.0]
[1719106273500,6.5,134.79,134.73,100.0]
[1719106273707,6.5,134.78,134.72,22.0785]
[1719106273915,6.5,134.79,134.72,15.5785]
[1719106274087,6.5,134.79,134.73,106.5]
[1719106274476,13.919,134.79,134.73,6.5]
[1719106275298,13.9196,134.78,134.72,15.5785]
[1719106275494,13.9208,134.76,134.69,116.3063]
[1719106275806,6.5,134.75,134.7,6.5]
[1719106276187,6.5,134.75,134.69,116.3063]
[1719106276390,7.4214,134.75,134.69,116.3063]
[1719106276590,6.5,134.74,134.69,122.8063]
[1719106277413,7.4214,134.75,134.69,116.3063]
[1719106277706,7.4208,134.76,134.69,116.3063]
[1719106277880,20.0,134.75,134.69,116.3063]
[1719106279100,20.0,134.76,134.71,100.0]
[1719106279294,15.5096,134.77,134.71,100.0]
[1719106280206,22.9299,134.77,134.69,116.3063]
[1719106281715,20.0,134.76,134.69,116.3063]
[1719106285482,20.0,134.76,134.71,100.0]
[1719106285706,15.5096,134.77,134.71,100.0]
[1719106287410,7.5909,134.76,134.69,100.0]
[1719106287614,27.5909,134.76,134.69,100.0]
[1719106289399,20.17,134.76,134.69,100.0]
[1719106296611,27.5906,134.76,134.69,100.0]
[1719106298020,20.17,134.76,134.69,100.0]
[1719106298207,20.0,134.76,134.71,100.0]
[1719106299518,20.0,134.76,134.73,6.49]
[1719106301809,20.0,134.76,134.73,106.49]
[1719106302023,20.0,134.76,134.72,6.49]
[1719106302430,13.9119,134.74,134.69,100.0]
[1719106302626,7.4222,134.73,134.68,6.49]
[1719106303035,13.9122,134.73,134.68,6.49]
[1719106303739,6.49,134.73,134.68,6.49]
[1719106305236,13.9122,134.73,134.67,100.0]
[1719106305436,7.4222,134.73,134.67,100.0]
[1719106306226,7.4218,134.74,134.67,100.0]
[1719106306534,20.0,134.73,134.67,100.0]
[1719106306948,20.0,134.74,134.67,100.0]
[1719106308133,27.4217,134.74,134.67,100.0]
[1719106309146,7.4222,134.73,134.67,100.0]
[1719106309345,15.7126,134.71,134.64,100.0]
[1719106310048,23.1362,134.71,134.64,100.0]
[1719106319428,23.1362,134.71,134.65,1.59790066]
[1719106320664,23.1362,134.71,134.64,100.0]
[1719106323857,15.7126,134.71,134.66,100.0]
[1719106326557,15.7126,134.71,134.68,100.0]
[1719106326857,15.3377,134.74,134.7,100.0]
[1719106327545,15.3377,134.74,134.7,106.49]
[1719106328063,22.7595,134.74,134.7,6.49]
[1719106328232,29.2495,134.74,134.68,100.0]
[1719106328433,6.49,134.73,134.68,100.0]
[1719106328655,13.9131,134.72,134.67,6.49]
[1719106329454,15.3377,134.74,134.66,100.0]
[1719106329455,33.8932,134.74,134.66,100.0]
[1719106329656,6.49,134.69,134.64,106.49]
[1719106329857,21.8277,134.69,134.64,106.49]
[1719106333156,15.3377,134.69,134.64,106.49]
[1719106333346,15.3377,134.69,134.66,100.0]
[1719106333542,15.3377,134.69,134.66,106.49]
[1719106333743,23.0595,134.72,134.67,6.49]
[1719106334047,16.5695,134.72,134.68,6.49]
[1719106339465,16.5695,134.72,134.69,6.49]
[1719106339767,6.542,134.74,134.7,106.49]
[1719106339938,16.5695,134.75,134.71,6.49]
[1719106340143,16.5695,134.75,134.72,6.49]
[1719106341867,16.5695,134.75,134.71,6.49]
[1719106344456,16.5695,134.75,134.72,100.0]
[1719106344661,16.5695,134.75,134.72,106.49]
[1719106345857,6.49,134.77,134.72,106.49]
[1719106346055,36.7119,134.78,134.72,106.49]
[1719106346255,36.7119,134.78,134.73,6.49]
[1719106346572,30.2219,134.78,134.73,6.49]
[1719106346869,36.7119,134.78,134.73,6.49]
[1719106347073,36.7119,134.78,134.72,106.49]
[1719106347373,13.91,134.77,134.72,106.49]
[1719106347673,7.4207,134.76,134.72,100.0]
[1719106348360,13.9102,134.77,134.72,100.0]
[1719106349371,22.8023,134.78,134.68,25.96]
[1719106349372,6.49,134.74,134.68,100.0]
[1719106349571,6.49,134.74,134.69,6.49]
[1719106351751,22.7503,134.73,134.68,100.0]
[1719106351951,22.7503,134.73,134.68,106.49]
[1719106352352,16.2603,134.73,134.69,6.49]
[1719106354379,13.9108,134.76,134.7,106.49]
[1719106354672,16.2603,134.77,134.69,6.49]
[1719106354673,6.49,134.74,134.69,6.49]
[1719106355055,6.49,134.73,134.67,100.0]
[1719106355363,6.49,134.72,134.67,106.49]
[1719106356785,6.49,134.72,134.67,100.0]
[1719106356955,6.49,134.72,134.67,106.49]
[1719106357470,22.7503,134.73,134.67,106.49]
[1719106359272,22.7503,134.73,134.67,100.0]
[1719106359461,22.7503,134.73,134.67,106.49]
[1719106362388,22.7503,134.73,134.68,6.49]
[1719106363181,27.7631,134.72,134.63,123.1016]
[1719106363379,6.49,134.7,134.63,100.0]
[1719106363593,6.49,134.7,134.64,6.49]
[1719106365072,6.49,134.71,134.65,100.0]
[1719106365589,6.49,134.71,134.66,6.49]
[1719106369326,26.49,134.72,134.67,106.49]
[1719106369486,20.0,134.72,134.67,106.49]
[1719106370916,26.49,134.72,134.67,106.49]
[1719106372997,20.0,134.72,134.68,6.49]
[1719106373300,22.7503,134.73,134.68,6.49]
[1719106373687,30.1727,134.73,134.68,6.49]
[1719106373889,13.9128,134.72,134.67,6.49]
[1719106374091,6.49,134.71,134.66,100.0]
[1719106374414,6.49,134.71,134.65,6.49]
[1719106374796,6.49,134.71,134.64,100.0]
[1719106374797,6.49,134.7,134.64,100.0]
[1719106375096,6.49,134.7,134.65,6.49]
[1719106375607,6.49,134.7,134.64,100.0]
[1719106375918,6.49,134.68,134.64,100.0]
[1719106380812,6.49,134.67,134.64,100.0]
[1719106381615,22.2405,134.68,134.64,100.0]
[1719106382117,15.7505,134.68,134.64,100.0]
[1719106382702,22.2405,134.68,134.64,100.0]
[1719106383394,22.2405,134.68,134.62,106.49]
[1719106384722,6.49,134.67,134.62,106.49]
[1719106386628,15.7505,134.68,134.64,100.0]
[1719106387428,15.7505,134.68,134.65,6.49]
[1719106387627,22.0092,134.71,134.65,6.49]
[1719106387927,20.0,134.7,134.66,1.48278153]
[1719106390031,27.4239,134.7,134.66,1.48278153]
[1719106390233,33.9139,134.7,134.66,1.48278153]
[1719106390929,7.4245,134.69,134.64,106.49]
[1719106391114,13.9145,134.69,134.64,106.49]
[1719106391319,13.9145,134.69,134.64,100.0]
[1719106393138,13.916,134.67,134.62,100.0]
[1719106393309,6.49,134.65,134.6,100.0]
[1719106393509,6.49,134.64,134.6,100.0]
[1719106394340,6.49,134.64,134.58,100.0]
[1719106394529,6.49,134.63,134.58,100.0]
[1719106394849,6.49,134.62,134.58,100.0]
[1719106395202,6.49,134.61,134.56,100.0]
[1719106395404,6.49,134.61,134.56,106.49]
[1719106396439,6.49,134.61,134.56,100.0]
[1719106399643,6.49,134.64,134.59,6.49]
[1719106400032,15.5192,134.66,134.6,100.0]
[1719106400336,26.49,134.65,134.59,6.49]
[1719106400515,27.4267,134.65,134.59,6.49]
[1719106400715,6.49,134.64,134.59,6.49]
[1719106401154,6.49,134.64,134.58,100.0]
[1719106401322,6.49,134.64,134.58,106.49]
[1719106402427,20.0,134.65,134.58,106.49]
[1719106402747,6.49,134.64,134.59,6.49]
[1719106407123,20.0,134.65,134.6,106.49]
[1719106407324,29.6054,134.66,134.6,106.49]
[1719106409942,15.5192,134.66,134.61,6.49]
[1719106410240,22.0092,134.66,134.61,6.49]
[1719106410743,15.5192,134.66,134.61,6.49]
[1719106412533,15.5192,134.66,134.62,100.0]
[1719106412732,22.0092,134.66,134.62,100.0]
[1719106413127,29.4353,134.66,134.62,100.0]
[1719106415329,15.5192,134.66,134.62,100.0]
[1719106417853,23.2861,134.69,134.64,106.49]
[1719106418032,20.0,134.68,134.64,106.49]
[1719106418344,20.0,134.68,134.65,6.49]
[1719106418548,27.4251,134.68,134.64,106.49]
[1719106419030,27.4251,134.68,134.64,100.0]
[1719106420739,32.5966,134.71,134.61,100.0]
[1719106420740,22.4568,134.71,134.66,100.0]
[1719106420929,14.017,134.74,134.68,106.49]
[1719106421144,7.4219,134.74,134.69,7.97297049]
[1719106423651,7.4219,134.74,134.68,100.0]
[1719106423652,23.283,134.75,134.71,100.0]
[1719106424439,23.283,134.75,134.72,0.95700211]
[1719106425123,7.4196,134.78,134.73,106.49]
[1719106425525,7.4196,134.78,134.74,6.49]
[1719106426254,7.4196,134.78,134.73,106.49]
[1719106426454,7.4196,134.78,134.74,0.55017016]
[1719106426754,7.4196,134.78,134.73,106.49]
[1719106426951,13.9096,134.78,134.73,106.49]
[1719106427359,6.49,134.78,134.72,6.49]
[1719106427646,13.9106,134.76,134.71,100.0]
[1719106427861,13.9106,134.76,134.71,106.49]
[1719106428355,7.4213,134.75,134.71,100.0]
[1719106428652,13.9113,134.75,134.71,100.0]
[1719106428836,6.49,134.75,134.71,100.0]
[1719106429459,13.9107,134.76,134.71,106.49]
[1719106430046,7.4202,134.77,134.71,106.49]
[1719106430351,6.49,134.76,134.71,106.49]
[1719106430866,6.49,134.75,134.69,100.0]
[1719106431164,6.49,134.75,134.71,100.0]
[1719106431368,6.49,134.76,134.72,1.09943693]
[1719106431759,6.49,134.77,134.72,1.09943693]
[1719106431925,6.49,134.77,134.72,7.58943693]
[1719106432337,6.49,134.78,134.73,106.49]
[1719106432538,22.5308,134.79,134.73,106.49]
[1719106432929,29.0208,134.79,134.73,106.49]
[1719106433155,29.0208,134.79,134.74,6.49]
[1719106433340,7.4195,134.78,134.73,106.49]
[1719106433541,13.9095,134.78,134.73,106.49]
[1719106435455,6.49,134.78,134.73,106.49]
[1719106440246,6.49,134.77,134.72,6.49]
[1719106440450,6.49,134.77,134.71,100.0]
[1719106440451,6.49,134.76,134.71,106.49]
[1719106440849,13.9107,134.76,134.71,100.0]
[1719106441043,13.9107,134.76,134.67,100.0]
[1719106441044,13.9107,134.76,134.69,100.0]
[1719106441249,13.9107,134.76,134.7,6.49]
[1719106441641,6.49,134.76,134.7,6.49]
[1719106442040,6.49,134.76,134.71,106.49]
[1719106442262,21.6017,134.79,134.73,106.49]
[1719106443078,15.1117,134.79,134.75,100.0]
[1719106443256,7.4179,134.81,134.75,106.49]
[1719106443441,6.49,134.8,134.75,106.49]
[1719106443762,7.4179,134.81,134.75,106.49]
[1719106443961,6.49,134.8,134.75,106.49]
[1719106444456,7.4179,134.81,134.75,106.49]
[1719106444841,6.49,134.8,134.75,106.49]
[1719106447060,29.3036,134.82,134.76,6.49]
[1719106447262,29.1336,134.82,134.76,6.49]
[1719106447468,7.4168,134.83,134.77,106.49]
[1719106447670,7.4168,134.83,134.78,6.49]
[1719106447963,6.49,134.82,134.77,106.49]
[1719106448857,6.49,134.82,134.77,127.8783]
[1719106450069,0.8752964,134.84,134.8,6.49]
[1719106451352,6.49,134.82,134.77,127.8783]
[1719106453548,8.2916964,134.84,134.78,6.49]
[1719106453749,6.49,134.83,134.78,6.49]
[1719106454355,7.3652964,134.84,134.79,106.49]
[1719106454555,6.49,134.82,134.77,127.8783]
[1719106456966,0.8752964,134.84,134.77,127.8783]
[1719106457168,0.8752964,134.84,134.78,6.49]
[1719106457169,6.49,134.83,134.78,6.49]
[1719106457473,0.8752964,134.84,134.8,6.49]
[1719106458150,0.8752964,134.84,134.81,6.49]
[1719106458484,0.8752964,134.84,134.81,106.49]
[1719106462858,0.8752964,134.84,134.82,6.49]
[1719106463353,0.8752964,134.84,134.81,106.49]
[1719106464057,0.8752964,134.84,134.82,6.49]
[1719106467754,0.8752964,134.84,134.82,4.43]
[1719106467959,0.8752964,134.84,134.81,100.0]
[1719106468266,0.8752964,134.84,134.81,6.49]
[1719106468470,0.8752964,134.84,134.81,106.49]
[1719106470803,0.8752964,134.84,134.82,6.49]
[1719106473665,0.8752964,134.84,134.81,106.49]
[1719106475388,7.3652964,134.84,134.79,100.0]
[1719106475592,7.3652964,134.84,134.79,106.49]
[1719106476782,7.3652964,134.84,134.79,6.49]
[1719106477587,7.3652964,134.84,134.79,106.49]
[1719106478479,0.8752964,134.84,134.8,6.49]
[1719106479286,0.8752964,134.84,134.81,100.0]
[1719106479586,0.8752964,134.84,134.8,6.49]
[1719106479774,0.8752964,134.84,134.79,106.49]
[1719106480371,7.3652964,134.84,134.79,106.49]
[1719106487971,0.8752964,134.84,134.79,106.49]
[1719106488194,7.3652964,134.84,134.79,106.49]
[1719106489387,7.3652964,134.84,134.79,100.0]
[1719106489585,7.3652964,134.84,134.79,106.49]
[1719106490092,6.49,134.83,134.79,100.0]
[1719106491471,6.49,134.8,134.75,100.0]
[1719106492693,23.4081964,134.84,134.75,100.0]
[1719106492694,6.49,134.79,134.75,100.0]
[1719106492879,6.49,134.79,134.74,6.49]
[1719106493895,6.49,134.79,134.75,100.0]
[1719106495492,6.49,134.79,134.74,6.49]
[1719106495867,6.49,134.79,134.75,100.0]
[1719106496195,6.49,134.79,134.74,6.49]
[1719106496394,6.49,134.79,134.75,100.0]
[1719106496892,6.49,134.8,134.75,100.0]
[1719106497395,6.49,134.8,134.75,106.49]
[1719106499390,7.4169,134.83,134.77,100.0]
[1719106499705,6.49,134.81,134.77,100.0]
[1719106500068,7.4169,134.83,134.77,100.0]
[1719106500306,6.49,134.81,134.77,100.0]
[1719106503199,33.9074,134.82,134.77,106.49]
[1719106503491,6.49,134.81,134.76,6.49]
[1719106504404,13.9078,134.81,134.76,6.49]
[1719106504583,20.0,134.82,134.77,100.0]
[1719106504778,20.0,134.83,134.77,106.49]
[1719106505081,0.8752964,134.84,134.81,106.49]
[1719106506190,0.8752964,134.84,134.83,100.0]
[1719106507476,0.8752964,134.84,134.83,106.49]
[1719106509504,0.8752964,134.84,134.83,100.0]
[1719106510784,0.8752964,134.84,134.83,106.66]
[1719106512804,0.8752964,134.84,134.83,106.83]
[1719106518500,0.8752964,134.84,134.83,100.0]
[1719106519018,0.8752964,134.84,134.83,106.49]
[1719106520007,0.8752964,134.84,134.83,106.83]
[1719106520214,0.8752964,134.84,134.83,126.83]
[1719106522827,30.3936,134.96,134.92,100.0]
[1719106523007,22.9837,134.96,134.92,100.0]
[1719106523199,16.4937,134.96,134.92,100.0]
[1719106523391,16.4937,134.96,134.92,106.49]
[1719106523622,16.4937,134.96,134.94,100.0]
[1719106523996,27.3652964,134.98,134.94,100.0]
[1719106524321,7.3652964,134.98,134.94,100.0]
[1719106524902,7.4093,134.97,134.93,6.49]
[1719106525103,13.8993,134.97,134.92,100.0]
[1719106525402,0.8752964,134.98,134.94,100.0]
[1719106525602,6.49,134.97,134.94,100.0]
[1719106526403,14.7740964,134.98,134.94,100.0]
[1719106527620,6.49,134.97,134.92,106.49]
[1719106528121,8.2840964,134.98,134.9,100.0]
[1719106528122,6.49,134.96,134.9,100.0]
[1719106528315,13.8996,134.96,134.9,100.0]
[1719106528517,6.49,134.95,134.9,106.49]
[1719106530426,6.49,134.95,134.92,100.0]
[1719106530625,6.49,134.96,134.92,100.0]
[1719106530808,0.8752964,134.98,134.94,100.0]
[1719106531000,7.3652964,134.98,134.94,100.0]
[1719106531616,0.8752964,134.98,134.94,100.0]
[1719106531810,7.3652964,134.98,134.94,100.0]
[1719106532526,14.7738964,134.98,134.94,100.0]
[1719106533040,0.8752964,134.98,134.94,106.49]
[1719106537629,0.8752964,134.98,134.97,100.0]
[1719106538125,0.8752964,134.98,134.95,100.0]
[1719106538423,0.8752964,134.98,134.97,100.0]
[1719106539623,0.8752964,134.98,134.95,100.0]
[1719106540123,0.8752964,134.98,134.97,100.0]
[1719106540330,0.8752964,134.98,134.95,100.0]
[1719106543316,0.8752964,134.98,134.93,100.0]
[1719106543522,6.49,134.96,134.91,100.0]
[1719106543916,6.49,134.97,134.94,100.0]
[1719106544123,7.3652964,134.98,134.94,100.0]
[1719106544427,0.8752964,134.98,134.94,100.0]
[1719106544629,7.3652964,134.98,134.94,100.0]
[1719106545444,6.49,134.97,134.94,100.0]
[1719106548730,0.8752964,134.98,134.94,100.0]
[1719106548932,6.49,134.97,134.94,100.0]
[1719106551037,6.49,134.97,134.92,100.0]
[1719106551244,6.49,134.97,134.92,106.49]
[1719106552419,14.7737964,134.98,134.93,6.49]
[1719106553762,7.3652964,134.98,134.94,100.0]
[1719106554032,0.8752964,134.98,134.94,100.0]
[1719106554337,7.3652964,134.98,134.94,100.0]
[1719106554538,0.8752964,134.98,134.94,106.49]
[1719106557422,7.3652964,134.98,134.94,100.0]
[1719106559061,6.49,134.97,134.92,106.49]
[1719106561146,7.3652964,134.98,134.94,100.0]
[1719106561926,7.3652964,134.98,134.93,6.49]
[1719106562336,0.8752964,134.98,134.92,100.0]
[1719106562631,6.49,134.95,134.9,106.49]
[1719106562837,6.49,134.95,134.9,100.0]
[1719106563347,13.9004,134.95,134.9,100.0]
[1719106563533,6.49,134.94,134.9,100.0]
[1719106563733,6.49,134.94,134.91,1.47914054]
[1719106564447,6.49,134.95,134.91,1.47914054]
[1719106564634,6.49,134.95,134.9,106.49]
[1719106564635,6.398,134.97,134.92,100.0]
[1719106564834,6.49,134.96,134.92,100.0]
[1719106566327,6.49,134.95,134.9,106.49]
[1719106567240,6.49,134.92,134.88,100.0]
[1719106569263,6.49,134.92,134.86,100.0]
[1719106569546,6.49,134.91,134.86,106.49]
[1719106569744,6.49,134.91,134.88,100.0]
[1719106569945,6.49,134.92,134.88,100.0]
[1719106570132,8.77729949,134.95,134.91,100.0]
[1719106570338,21.66529949,134.97,134.93,100.0]
[1719106570537,15.27280194,134.97,134.93,100.0]
[1719106570745,8.78280194,134.97,134.93,106.49]
[1719106570952,22.4530964,134.98,134.93,106.49]
[1719106571341,15.9630964,134.98,134.93,100.0]
[1719106571547,15.9630964,134.98,134.94,6.49]
[1719106571753,0.8752964,134.98,134.95,100.0]
[1719106573965,0.8752964,134.98,134.94,6.49]
[1719106574156,7.3652964,134.98,134.93,106.49]
[1719106578857,0.8752964,134.98,134.93,106.49]
[1719106579053,0.8752964,134.98,134.97,100.0]
[1719106581158,0.8752964,134.98,134.97,106.49]
[1719106583441,0.8752964,134.98,134.97,100.0]
[1719106586452,0.8752964,134.98,134.95,100.0]
[1719106586653,0.8752964,134.98,134.95,106.49]
[1719106587158,0.8752964,134.98,134.97,100.0]
[1719106587848,0.8752964,134.98,134.97,106.49]
[1719106588459,0.8752964,134.98,134.97,206.49]
[1719106588649,0.8752964,134.98,134.97,206.83]
[1719106595387,0.8752964,134.98,134.97,106.83]
[1719106596393,0.8752964,134.98,134.97,106.49]
[1719106596593,0.8752964,134.98,134.97,100.0]
[1719106598293,0.8752964,134.98,134.96,6.49]
[1719106598472,0.8752964,134.98,134.95,100.0]
[1719106598802,0.8752964,134.98,134.95,106.49]
[1719106599182,0.8752964,134.98,134.97,106.49]
[1719106602485,0.8752964,134.98,134.96,6.49]
[1719106602691,0.8752964,134.98,134.95,106.49]
[1719106604184,0.8752964,134.98,134.97,100.0]
[1719106607095,0.8752964,134.98,134.96,6.49]
[1719106607288,0.8752964,134.98,134.95,100.0]
[1719106607490,0.8752964,134.98,134.95,106.49]
[1719106608205,0.8752964,134.98,134.95,100.0]
[1719106608517,0.8752964,134.98,134.95,106.49]
[1719106609005,0.8752964,134.98,134.95,100.0]
[1719106609178,0.8752964,134.98,134.95,106.49]
[1719106611095,0.8752964,134.98,134.97,100.0]
[1719106612175,0.8752964,134.98,134.97,106.49]
[1719106613292,0.8752964,134.98,134.97,100.0]
[1719106616695,0.8752964,134.98,134.95,100.0]
[1719106618500,0.8752964,134.98,134.94,6.49]
[1719106618501,0.8752964,134.98,134.93,100.0]
[1719106618706,13.8993,134.97,134.91,100.0]
[1719106618896,13.8993,134.97,134.92,6.49]
[1719106620408,6.49,134.94,134.91,100.0]
[1719106621884,7.4107,134.94,134.89,100.0]
[1719106622112,6.49,134.92,134.87,106.49]
[1719106622906,6.49,134.92,134.87,100.0]
[1719106623108,6.49,134.92,134.87,106.49]
[1719106625017,6.49,134.92,134.87,100.0]
[1719106625310,6.49,134.92,134.87,106.49]
[1719106625515,13.9018,134.92,134.87,100.0]
[1719106625711,6.49,134.9,134.85,106.49]
[1719106626095,6.49,134.9,134.87,100.0]
[1719106626618,6.49,134.91,134.87,100.0]
[1719106628114,6.49,134.9,134.84,100.0]
[1719106628296,6.49,134.9,134.84,106.49]
[1719106628593,6.49,134.9,134.84,100.0]
[1719106628797,6.49,134.9,134.84,106.49]
[1719106631300,6.49,134.9,134.86,100.0]
[1719106631501,15.6786,134.93,134.88,100.0]
[1719106631715,6.49,134.92,134.88,100.0]
[1719106631896,6.49,134.91,134.86,106.49]
[1719106632096,23.0899,134.93,134.86,106.49]
[1719106632297,6.49,134.91,134.86,106.49]
[1719106632617,6.49,134.9,134.86,100.0]
[1719106633112,15.6786,134.93,134.84,106.49]
[1719106633113,6.49,134.89,134.84,106.49]
[1719106633895,6.49,134.91,134.86,100.0]
[1719106634101,6.49,134.92,134.88,100.0]
[1719106635415,6.49,134.9,134.86,100.0]
[1719106635625,6.49,134.91,134.86,106.49]
[1719106636526,6.49,134.92,134.87,6.49]
[1719106637831,13.9018,134.92,134.87,6.49]
[1719106638443,6.49,134.91,134.86,106.49]
[1719106642526,15.6786,134.93,134.89,100.0]
[1719106642744,22.1686,134.93,134.89,100.0]
[1719106642903,15.6786,134.93,134.89,106.49]
[1719106644604,29.5799,134.93,134.89,100.0]
[1719106645129,6.49,134.92,134.89,100.0]
[1719106645327,6.49,134.92,134.87,106.49]
[1719106646409,6.49,134.92,134.89,100.0]